Cogmind - Beta 13 @@@ ROGUE MODE // 2024.04.02 @ 17:02:20 Player: SonVince Result: Destroyed by as-12773 with Assembled Blade Performance ------------- Evolutions (0) 0 Regions Visited (2) 400 Robots Destroyed (20) 100 Value Destroyed (653) 653 Prototype IDs (0) 0 Alien Tech Used (0) 0 Bonus (0) 0 TOTAL SCORE: 1153 Bonus ------- None Cogmind --------- Core Integrity 0/250 Matter 285/300 Energy 109/125 System Corruption 0% Temperature Cool (3) Movement Treading (480) Ox4 Location -10/Mines Parts ------- > --- POWER (1) -------- Light Ion Engine > --- PROPULSION (2) --- Light Treads > --- UTILITY (2) ------ Huge Storage Unit Signal Interpreter > --- WEAPON (2) ------- EM Pulse Gun Grenade Launcher > --- INVENTORY (25) --- Ion Engine Aluminum Leg Aluminum Leg Structural Scanner Seismic Detector EM Pulse Gun EM Pulse Gun EM Pulse Gun Hammer Peak State ------------ > --- POWER ------------ Light Nuclear Core > --- PROPULSION ------- Aluminum Leg Aluminum Leg > --- UTILITY ---------- Huge Storage Unit Signal Interpreter > --- WEAPON ----------- EM Pulse Gun Particle Gun > --- INVENTORY -------- Light Ion Engine Light Treads Light Treads Structural Scanner Seismic Detector EM Pulse Gun EM Pulse Gun EM Pulse Gun EM Pulse Gun Grenade Launcher [Rating: 11] Favorites ----------- Power Light Ion Engine Engine Light Ion Engine Power Core Light Nuclear Core Propulsion Light Treads Treads Light Treads Leg Aluminum Leg Utility Signal Interpreter Device Structural Scanner Storage Huge Storage Unit Processor Signal Interpreter Weapon EM Pulse Gun Energy Gun EM Pulse Gun Ballistic Gun Assault Rifle Launcher Grenade Launcher Build | -11 -10 -10 ------- Run | Yrd Mat Min Slots Evolved . | . . . Power . | . . . Propulsion . | . . . Utility . | . . . Weapon . | . . . Parts Attached 20 | 7 12 1 Power 3 | 1 2 . Engine 2 | 1 1 . Core 1 | . 1 . Reactor . | . . . Propulsion 5 | 2 3 . Treads 2 | . 2 . Leg 3 | 2 1 . Wheel . | . . . Hover . | . . . Flight . | . . . Utility 4 | 1 3 . Device 1 | . 1 . Storage 2 | 1 1 . Processor 1 | . 1 . Hackware . | . . . Protection . | . . . Artifact . | . . . Weapon 8 | 3 4 1 Energy Gun 6 | 2 4 . Energy Cannon . | . . . Ballistic Gun 1 | 1 . . Ballistic Cannon . | . . . Launcher 1 | . . 1 Special Weapon . | . . . Impact Weapon . | . . . Slashing Weapon . | . . . Piercing Weapon . | . . . Special Melee Weapon . | . . . Unidentified Prototypes . | . . . Parts Lost 4 | . 3 1 Power 2 | . 2 . Propulsion 1 | . . 1 Utility . | . . . Weapon 1 | . 1 . Highest Loss Streak 1 | . 1 1 To Critical Strikes . | . . . Average Slot Usage (%) 97 | . 97 100 Engine 8 | . 7 14 Core 3 | . 4 . Treads 17 | . 16 28 Leg 10 | . 11 . Device 2 | . 3 . Storage 14 | . 14 14 Processor 10 | . 10 14 Energy Gun 22 | . 22 28 Ballistic Gun 4 | . 5 . Naked Turns . | . . . Heaviest Build 90 | 12 90 87 Greatest Support 40 | 20 40 40 Greatest Overweight (x) 4 | 1 4 2 Average Overweight (x) . | . . 2 Largest Inventory Capacity 25 | 8 25 25 Average Capacity 18 | 7 18 25 Most Carried 10 | 7 10 9 Average Carried 8 | 4 8 9 Final Capacity 25 | 8 25 25 Final Carried 9 | 4 9 9 Class Distribution -------------------- 90% | Mutant 9% | Scavenger-Mutant Dominant Class ---------------- Mutant | -10/Materials Mutant | -10/Mines Resources | -11 -10 -10 ----------- Run | Yrd Mat Min Matter Collected 481 | 227 254 . Remotely . | . . . Salvage Created 863 | . 857 6 Parts 43 | . 43 . Haulers Intercepted 1 | . 1 . Recyclers Shooed . | . . . Parts Field Recycled . | . . . Retrieved Matter . | . . . Parts Self-Destructed . | . . . Prevented . | . . . Kills | -11 -10 -10 ------- Run | Yrd Mat Min Combat Hostiles Destroyed 17 | . 16 1 Guns 15 | . 15 . AOE 2 | . 1 1 Classes Destroyed 4 | . 3 1 Hauler 1 | . 1 . Watcher 3 | . 3 . Grunt 16 | . 16 . Assembled 1 | . . 1 Best Kill Streak 2 | . 2 1 Combat Bots Only 2 | . 2 1 Max Kills in Single Turn 1 | . 1 1 Gunslinging . | . . . Exploded 1 | . 1 1 Melee . | . . . Uniques/NPCs Destroyed . | . . . Combat | -11 -10 -10 -------- Run | Yrd Mat Min Hostile Shots Fired 94 | . 92 2 Missed 23 | . 22 1 Damage Taken 932 | . 896 36 Core 256 | . 240 16 Absorbed by Shields . | . . . Core Remaining (%) 100 | 100 . . Volleys Fired 61 | . 60 1 Largest 2 | . 2 2 Hottest 105 | . 105 70 Shots Fired 122 | . 120 2 Gun 121 | . 120 1 Cannon . | . . . Launcher 1 | . . 1 Special . | . . . Kinetic 33 | . 33 . Thermal 56 | . 56 . Explosive 1 | . . 1 Electromagnetic 32 | . 31 1 Robot Hit Streak 13 | . 13 . Robot Miss Streak 3 | . 3 . Penetration Max . | . . . Secondary Targets 1 | . 1 . Max Gunslinging Chain 1 | . 1 . Shots Hit Robots 87 | . 87 . Core Hits 43 | . 34 9 Critical Kills . | . . . Critical Parts Destroyed . | . . . Critical Strikes 4 | . 4 . Burn 3 | . 3 . Corrupt 1 | . 1 . Melee Attacks . | . . . Impact . | . . . Slashing . | . . . Piercing . | . . . Sneak Attacks . | . . . Combat Hostiles . | . . . Follow-up Attacks . | . . . Damage Inflicted 1424 | . 1254 170 Guns 1206 | . 1194 12 Cannons . | . . . Explosions 212 | . 54 158 Melee . | . . . Ramming 6 | . 6 . Kinetic 296 | . 296 . Thermal 582 | . 582 . Explosive 158 | . . 158 Electromagnetic 382 | . 370 12 Impact . | . . . Slashing . | . . . Piercing . | . . . Highest Corruption . | . . . Average Corruption . | . . . Corruption Purged . | . . . Corruption Blocked . | . . . Overload Shots . | . . . Overflow Damage . | . . . Projectiles . | . . . Explosions . | . . . Melee . | . . . Knockbacks . | . . . Impact . | . . . Kinetic . | . . . Secondary . | . . . Self-Inflicted Damage 37 | . 37 . Shots 1 | . 1 . Rammed 1 | . 1 . Targets Rammed 2 | . 2 . Kicked 1 | . 1 . Crushed . | . . . Highest Temperature 281 | . 281 3 Average Temperature 66 | . 67 3 Received Heat Transfer 489 | . 489 . Siege Activations . | . . . Robots Corrupted . | . . . Combat Hostiles . | . . . Parts Fried . | . . . Impact Corruptions . | . . . Robots Melted . | . . . Combat Hostiles . | . . . Parts Melted 2 | . 2 . Heat Transferred 1728 | . 1728 . Parts Sabotaged . | . . . Parts Stolen . | . . . Parts Stripped . | . . . Power Chain Reactions 1 | . 1 . Alert | -11 -10 -10 ------- Run | Yrd Mat Min Peak Influence 226 | . 226 56 Initial 51 | . . 51 Average 84 | . 90 51 Maximum Alert Level 1 | . 1 . Low Security (%) 98 | 100 98 100 Level 1 1 | . 1 . Level 2 . | . . . Level 3 . | . . . Level 4 . | . . . Level 5 . | . . . High Security . | . . . Max Security . | . . . Squads Dispatched 4 | . 4 . Investigation 2 | . 2 . Extermination . | . . . Reinforcement 2 | . 2 . Assault . | . . . Garrison . | . . . Intercept . | . . . Searches Triggered . | . . . Construction Impeded . | . . . Haulers Reinforced . | . . . Active Scanning Responses . | . . . Cargo Convoy Interrupts . | . . . Stealth | -11 -10 -10 --------- Run | Yrd Mat Min Distress Signals . | . . . Communications Jammed . | . . . Distress Signals . | . . . Times Spotted 30 | . 24 6 Peak Tracking Total 7 | . 3 7 Tactical Retreats 3 | . 3 . Traps | -11 -10 -10 ------- Run | Yrd Mat Min Traps Triggered 1 | . 1 . Indirectly . | . . . Trap Hack Attempts . | . . . Triggered . | . . . Disarmed . | . . . Reprogrammed . | . . . Reused . | . . . Traps Extracted . | . . . Installed . | . . . Triggered . | . . . Machines | -11 -10 -10 ---------- Run | Yrd Mat Min Machines Disabled 2 | . 2 . Max in Single Turn 1 | . 1 . Machines Repaired . | . . . Machines Dismantled . | . . . Machines Sabotaged . | . . . Overloaded Fab Kills . | . . . Hacking | -11 -10 -10 --------- Run | Yrd Mat Min Machines Accessed 2 | . 2 . Terminals 2 | . 2 . Fabricators . | . . . Repair Stations . | . . . Recycling Units . | . . . Scanalyzers . | . . . Garrison Access . | . . . Total Hacks 2 | . 2 . Successful 1 | . 1 . Failed 1 | . 1 . Catastrophic 1 | . 1 . Database Lockouts . | . . . Manual . | . . . Terminals 2 | . 2 . Fabricators . | . . . Repair Stations . | . . . Recycling Units . | . . . Scanalyzers . | . . . Garrison Access . | . . . Terminal Hacks 1 | . 1 . Locate Traps 1 | . 1 . Fabricator Hacks . | . . . Repair Station Hacks . | . . . Recycling Unit Hacks . | . . . Scanalyzer . | . . . Garrison Access Hacks . | . . . Unauthorized Hacks . | . . . Terminals . | . . . Fabricators . | . . . Repair Stations . | . . . Recycling Units . | . . . Scanalyzers . | . . . Garrison Access . | . . . Data Cores Recovered . | . . . Used . | . . . Hacking Detections 1 | . 1 . Full Trace Events . | . . . Feedback Events . | . . . Feedback Blocked . | . . . Robot Schematics Acquired . | . . . Robots Built . | . . . Authchips . | . . . Time . | . . . Total Robot Build Rating . | . . . Part Schematics Acquired . | . . . Parts Built . | . . . Authchips . | . . . Time . | . . . Total Part Build Rating . | . . . Parts Repaired . | . . . Time . | . . . Parts Recycled . | . . . Recycled Matter . | . . . Retrieved Matter . | . . . Retrieved Components . | . . . Parts Scanalyzed . | . . . Part Schematics Acquired . | . . . Parts Damaged . | . . . Bothacking | -11 -10 -10 ------------ Run | Yrd Mat Min Used RIF Installer . | . . . Robots Hacked . | . . . Non-combat . | . . . Combat . | . . . Robot Hacks Applied . | . . . Relay Couplers Released . | . . . Fabnet Peak Effective % . | . . . Robots Rewired . | . . . Allies Hacked . | . . . Hacks Repelled . | . . . Allies | -11 -10 -10 -------- Run | Yrd Mat Min Total Allies . | . . . Largest Group . | . . . Highest-Rated Group . | . . . Highest-Rated Ally . | . . . Total Orders . | . . . Ally Attacks . | . . . Total Damage . | . . . Kills . | . . . Allies Corrupted . | . . . Allies Melted . | . . . Intel | -11 -10 -10 ------- Run | Yrd Mat Min Robot Analysis Total . | . . . Derelict Logs Recovered . | . . . Drone Launches . | . . . Drone Recoveries . | . . . Exploration | -11 -10 -10 ------------- Run | Yrd Mat Min Turns Passed 2084 | 75 1833 176 Spaces Moved 757 | 54 649 54 Core 25 | 25 . . Treads 360 | . 306 54 Legs 372 | 29 343 . Wheels . | . . . Hover . | . . . Flight . | . . . Fastest Speed 50 | 50 120 320 Average Speed 215 | 103 216 320 Slowest Speed 400 | 120 400 320 Overloaded Moves . | . . . Propulsion Burnouts . | . . . Robots Hopped . | . . . Cave-ins Triggered . | . . . Exploration Rate (%) 31 | 5 79 10 Regions Visited 2 Branch Regions 1 Pre-discovered Areas . | . . . Known Exits Taken 1 | . 1 . Unknown Exits Taken 1 | 1 . . Scrap Searched . | . . . Spaces Dug . | . . . Terrain Destroyed 8 | . 3 5 Melee . | . . . Projectile . | . . . AOE 8 | . 3 5 Terrain Rammed . | . . . Walls Destroyed . | . . . Machines Disabled . | . . . Actions | -11 -10 -10 --------- Run | Yrd Mat Min Total 1087 | 72 959 56 Wait 220 | 2 218 . Move 755 | 53 648 54 Hop . | . . . Pick Up 22 | 10 12 . Fast Attach 2 | . 2 . Attach 9 | 6 3 . Detach . | . . . Swap 9 | 1 7 1 Drop 7 | . 7 . Fire 61 | . 60 1 Melee . | . . . Ram . | . . . Kick 1 | . 1 . Crush 1 | . 1 . Escape Stasis . | . . . Rewire . | . . . Trap . | . . . Miscellaneous . | . . . Route ------- -11/Scrapyard -10/Materials (discovered 3 exits: *Mat x2 / *Min) -10/Mines History --------- Turn | Location | Event 10 | -11/Scrapyard | Discovered new exit (range 16) 76 | -11/Scrapyard | Entered Materials 313 | -10/Materials | Build established: Mutant 492 | -10/Materials | Discovered new exit (range 7) 578 | -10/Materials | Identified exit to Materials 976 | -10/Materials | Core integrity fell below 50% 1335 | -10/Materials | Discovered exit to Materials (range 15) 1375 | -10/Materials | Core integrity fell below 20% 1867 | -10/Materials | Discovered new exit (range 14) 1905 | -10/Materials | Identified exit to Mines 1909 | -10/Materials | Entered Mines 2064 | -10/Mines | Assembled infested the area 2069 | -10/Mines | Assisted by a Guerilla fighting off Assembled 2085 | -10/Mines | Destroyed by as-12773 with Assembled Blade Last Messages --------------- G-34 Mercenary destroyed. Acquired Ion Engine. EXIT=FOUND EXIT=IDENTIFIED: MINES K-01 Serf cleans the Terminal. LOCATION=MINES GOAL=ESCAPE Something is scanning the area. ALERT: Infestation in the mines, dispatching Demolisher response squad. A derelict emerges from the shadows: "You need to get out of here! I've been tracking a group of Assembled to figure out where they're coming from, and they're closing on this area, come on!" 62-HVC(h): "I'll hold them off! Go on ahead or try to find another way!" HV Slug penetrates as-73380. as-73380 suffers critical hit (Destroy). as-73380 destroyed. HV Slug penetrates Wall. 62-HVC(h) system corrupted by crushing effect. 62-HVC(h) knocked back. 62-HVC(h) destroyed. Lgt. Treads destroyed. Map ----- +----------------------------------------------------+ | ?????????????????????????????????????????????????? | | ?????????????????????????????????????????????????? | | ?????????????????????????????????????????????????? | | ????????????????????????????????? ???????????????? | | ?????????????????????????????????? ??????????????? | | ??????????????????????????????????? ?????????????? | | ???????????????????????????????????? ????????????? | | ????????????????????????????????????# ???????????? | | ????????????????????????????????????# ##?????????? | | ????????????????????????????????????? ####?????? | | ??????????????????????????????????????# ####??? | | ??????????????????????????????????????# ##?? | | ????????????????????????????????????????# #?? | | ????????????????????????????????????????# #?? | | ???????????????????????????????????????## ##?? | | ?????????????????????????????????????### ## #??? | | ??????????????????????????????????#### ### #### | | ?????????????????????????????????## #?# | | ?????????????????????????????????# #?# #### | | ?????????????????????????????????# ##?# #??? | | ?????????????????????????????????# #####??# #??# | | ????????????????????????########## ##??????# #### | | ????????????????????????# #???????# ## | | ????????????????????????# ######## ##???????# | | ????????????????????????# #??????###????????### | | ????????????????????????#@#???????????????????## | | ??????????????????????? aa ???????????????????### | | ????????????????????? aa #???????????????????? | | ???????????????????# a #???????????????????? | | ???????????????????## % ##???????????????????? | | ????????????????????# ##????????????????????? | | ????????????????????### ##?????????????????????? | | ??????????????????????### #??????????????????????? | | ????????????????????????# ??????????????????????? | | ?????????????????????????r#??????????????????????? | | ????????????????????????? ???????????????????????? | | ????????????????????????? ???????????????????????? | | ????????????????????????? ???????????????????????? | | ?????????????????????????#???????????????????????? | | ?????????????????????????????????????????????????? | | ?????????????????????????????????????????????????? | | ?????????????????????????????????????????????????? | | ?????????????????????????????????????????????????? | | ?????????????????????????????????????????????????? | | ?????????????????????????????????????????????????? | | ?????????????????????????????????????????????????? | | ?????????????????????????????????????????????????? | | ?????????????????????????????????????????????????? | | ?????????????????????????????????????????????????? | | ?????????????????????????????????????????????????? | +----------------------------------------------------+ Best States ------------- Heat Dissipation 25 Energy Generation 14 Energy Capacity 160 Matter Stores 300 Matter Capacity 300 Sight Range 16 Terrain Scan Density 10 Evasion (%) 55 Recoil Reduction 2 Item Schematics ----------------- None Robot Schematics ------------------ None Fabricated ------------ Nothing Alien Tech Used ----------------- None Achievements -------------- None Challenges ------------ None Game ------ Seed TiamatLightningBooster Manual? 0 Play Time 00:15:06 Cumulative 5.9 hours Start 2024.04.02 @ 16:40:54 End 2024.04.02 @ 17:02:20 Sessions 1 Manual Loads 0 Difficulty Rogue Special Mode None Game No. 14 Rogue 14 Adventurer 0 Explorer 0 Win Type - Total 0 Types 0/0/0/0/0/0/0/0/0 Lore% 6 Gallery% 10 Achievement% 12 Wizard Run 0 Options --------- Layout 0 ASCII 0 Keyboard 0 Movement Mouse Keybinds 0 Fullscreen 1 Font 24/Smallcaps Map View 56x25 Zoom Use 98% Tactical HUD 0 Map Filters NONE Filters NONE Steam 1 RUN: 8af397b0-ab72-4ab1-996c-03983d30bc1c